[Event "RUS-chTW Premier 2019"]
[Site "Sochi"]
[Date "2019.05.01"]
[Round "1.15"]
[White "Maltsevskaya, Aleksandra"]
[Black "Mironenko, Galina"]
[Result "1-0"]
[ECO "B27"]
[WhiteElo "2299"]
[BlackElo "1901"]
[Annotator "NA"]
[PlyCount "95"]
[EventDate "2019.04.30"]
[EventType "team-tourn"]
[EventCountry "RUS"]
[SourceTitle "playchess.com"]
[Source "ChessBase"]
[SourceQuality "1"]
[TimeControl "40/5400+30:1800+30"]

1. e4 {[%emt 0:00:00]} c5 {[%emt 0:00:00]} 2. Nf3 {[%emt 0:00:23]} g6 {[%emt 0:00:00]} 3. g3 {[%emt 0:02:57]} Nc6 {[%emt 0:00:00]} 4. Bg2 {[%emt 0:00:22]} Bg7 {[%emt 0:00:02]} 5. O-O {[%emt 0:00:07]} d6 {[%emt 0:00:11]} 6. Nc3 {[%emt 0:00:50]} e5 {[%emt 0:02:04]} 7. a3 {[%emt 0:01:58]} Nge7 {[%emt 0:03:43]} 8. b4 {[%emt 0:00:08]} O-O {[%emt 0:04:14]} 9. d3 {[%emt 0:01:41]} h6 {[%emt 0:02:18]} 10. bxc5 {[%emt 0:10:13]} dxc5 {[%emt 0:00:36]} 11. Rb1 {[%emt 0:00:10]} b6 {[%emt 0:06:13]} 12. Nd5 {[%emt 0:04:05]} Be6 {[%emt 0:08:46]} 13. c4 {[%emt 0:02:31]} Kh7 {[%emt 0:06:06]} 14. a4 {[%emt 0:02:07]} f5 {[%emt 0:04:42]} 15. exf5 {[%emt 0:13:09]} Nxf5 {[%emt 0:05:24]} 16. Re1 {[%emt 0:05:26]} Qd6 {[%emt 0:06:23]} 17. Bb2 {[%emt 0:05:19]} Rae8 {[%emt 0:01:16]} 18. a5 {[%emt 0:11:00]} Bxd5 {[%emt 0:04:49]} 19. cxd5 {[%emt 0:00:06]} Nxa5 {[%emt 0:08:37]} 20. Ra1 {[%emt 0:02:22]} Qb8 {[%emt 0:02:38]} 21. Qa4 {[%emt 0:02:58]} Nd4 {[%emt 0:04:30]} 22. Nd2 {[%emt 0:02:43]} Nb7 {[%emt 0:05:38]} 23. Bxd4 {[%emt 0:08:04]} cxd4 {[%emt 0:04:03]} 24. Qxa7 {[%emt 0:02:21]} Qxa7 {[%emt 0:02:46]} 25. Rxa7 {[%emt 0:00:07]} Nc5 {[%emt 0:00:29]} 26. Be4 {[%emt 0:03:54]} Nxe4 {[%emt 0:02:55]} 27. Nxe4 {[%emt 0:00:13]} Rf3 {[%emt 0:08:51]} 28. Rc1 {[%emt 0:00:53]} Rg8 {[%emt 0:04:52]} 29. Kg2 {[%emt 0:01:28]} Rff8 {[%emt 0:00:45]} 30. Rb1 {[%emt 0:00:09]} Ra8 {[%emt 0:01:22]} 31. Rxa8 {[%emt 0:00:16]} Rxa8 {[%emt 0:00:09]} 32. Rxb6 {[%emt 0:00:04]} Rd8 {[%emt 0:00:39]} 33. d6 {[%emt 0:00:53]} Kh8 {[%emt 0:00:53]} 34. Rb7 {[%emt 0:00:12]} Bf8 {[%emt 0:00:23]} 35. h4 {[%emt 0:00:16]} Bg7 {[%emt 0:00:35]} 36. Re7 {[%emt 0:02:53]} Kg8 {[%emt 0:00:27]} 37. Rc7 {[%emt 0:01:07]} Kf8 {[%emt 0:00:34]} 38. g4 {[%emt 0:00:50]} Kg8 {[%emt 0:00:30]} 39. h5 {[%emt 0:02:05]} gxh5 {[%emt 0:00:32]} 40. gxh5 {[%emt 0:00:00]} Kf8 {[%emt 0:00:00]} 41. Kf3 {[%emt 0:00:09]} Kg8 {[%emt 0:04:59]} 42. Kg4 {[%emt 0:00:06]} Kf8 {[%emt 0:01:51]} 43. Kf5 {[%emt 0:00:07]} Kg8 {[%emt 0:00:12]} 44. Kg6 {[%emt 0:00:09]} Bh8 {[%emt 0:00:07]} 45. d7 {[%emt 0:00:37]} Kf8 {[%emt 0:00:07]} 46. Rc8 {[%emt 0:00:05]} Ke7 {[%emt 0:00:05]} 47. Rxd8 {[%emt 0:00:04]} Kxd8 {[%emt 0:00:03]} 48. Kh7 {[%emt 0:00:05]} 1-0

[Event "RUS-chTW Premier 2019"]
[Site "Sochi"]
[Date "2019.05.01"]
[Round "1.16"]
[White "Filippova, Darya"]
[Black "Diakonova, Ekaterina"]
[Result "1-0"]
[ECO "A25"]
[WhiteElo "2070"]
[BlackElo "2211"]
[Annotator "NA"]
[PlyCount "71"]
[EventDate "2019.04.30"]
[EventType "team-tourn"]
[EventCountry "RUS"]
[SourceTitle "playchess.com"]
[Source "ChessBase"]
[SourceQuality "1"]
[TimeControl "40/5400+30:1800+30"]

1. g3 {[%emt 0:00:00]} e5 {[%emt 0:00:00]} 2. c4 {[%emt 0:01:34]} Nc6 {[%emt 0:00:00]} 3. Bg2 {[%emt 0:01:13]} g6 {[%emt 0:00:08]} 4. Nc3 {[%emt 0:00:32]} Bg7 {[%emt 0:00:37]} 5. d3 {[%emt 0:00:42]} Nge7 {[%emt 0:03:12]} 6. Rb1 {[%emt 0:01:08]} a5 {[%emt 0:01:00]} 7. a3 {[%emt 0:04:15]} f5 {[%emt 0:07:17]} 8. Bg5 {[%emt 0:01:22]} h6 {[%emt 0:00:20]} 9. Bxe7 {[%emt 0:00:38]} Nxe7 {[%emt 0:01:48]} 10. e3 {[%emt 0:03:40]} O-O {[%emt 0:06:24]} 11. Nge2 {[%emt 0:00:54]} d6 {[%emt 0:00:24]} 12. O-O {[%emt 0:00:37]} c6 {[%emt 0:01:10]} 13. d4 {[%emt 0:05:16]} Be6 {[%emt 0:04:10]} 14. d5 {[%emt 0:02:31]} Bf7 {[%emt 0:00:24]} 15. Qd2 {[%emt 0:04:51]} c5 {[%emt 0:04:15]} 16. b4 {[%emt 0:05:39]} axb4 {[%emt 0:00:11]} 17. axb4 {[%emt 0:00:07]} b6 {[%emt 0:00:44]} 18. bxc5 {[%emt 0:01:11]} bxc5 {[%emt 0:00:05]} 19. e4 {[%emt 0:03:54]} Be8 {[%emt 0:16:55]} 20. Rb7 {[%emt 0:08:40]} f4 {[%emt 0:02:47]} 21. f3 {[%emt 0:01:49]} h5 {[%emt 0:10:21]} 22. Bh3 {[%emt 0:03:19]} g5 23. Be6+ {[%emt 0:01:46]} Kh8 {[%emt 0:06:04]} 24. Rfb1 {[%emt 0:01:15]} Bf7 {[%emt 0:14:59]} 25. Rd7 {[%emt 0:01:01]} Qe8 {[%emt 0:00:29]} 26. Rbb7 {[%emt 0:01:53]} Bf6 {[%emt 0:02:38]} 27. Nb5 {[%emt 0:03:08]} Ra1+ {[%emt 0:03:30]} 28. Nc1 {[%emt 0:03:34]} Bxe6 {[%emt 0:00:06]} 29. dxe6 {[%emt 0:00:07]} Nc8 {[%emt 0:03:22]} 30. Qc3 {[%emt 0:03:32]} Ra4 {[%emt 0:01:10]} 31. Nxd6 {[%emt 0:04:42]} Nxd6 {[%emt 0:00:06]} 32. Rxd6 {[%emt 0:00:13]} Rb4 {[%emt 0:00:15]} 33. Rbd7 {[%emt 0:01:43]} Bg7 {[%emt 0:06:54]} 34. Rxg7 {[%emt 0:04:35]} Kxg7 {[%emt 0:02:10]} 35. Qxe5+ {[%emt 0:00:08]} Kh7 {[%emt 0:01:38]} 36. Rd7+ {[%emt 0:00:23]} 1-0

[Event "RUS-chTW Premier 2019"]
[Site "Sochi"]
[Date "2019.05.02"]
[Round "2.1"]
[White "Kosteniuk, Alexandra"]
[Black "Badelka, Olga"]
[Result "1/2-1/2"]
[ECO "A35"]
[WhiteElo "2546"]
[BlackElo "2383"]
[Annotator "ChessBase"]
[PlyCount "80"]
[EventDate "2019.05.01"]
[EventType "team-tourn"]
[EventCountry "RUS"]
[SourceTitle "playchess.com"]
[Source "ChessBase"]
[SourceQuality "1"]
[TimeControl "40/5400+30:1800+30"]

1. c4 {[%emt 0:00:00]} Nf6 {[%emt 0:00:34]} 2. Nc3 {[%emt 0:00:00]} c5 {[%emt 0:00:52]} 3. Nf3 {[%emt 0:00:07]} Nc6 {[%emt 0:03:37]} 4. d4 {[%emt 0:00:17]} cxd4 {[%emt 0:00:04]} 5. Nxd4 {[%emt 0:00:04]} d6 {[%emt 0:03:14]} 6. g3 {[%emt 0:02:23]} g6 {[%emt 0:01:07]} 7. Bg2 {[%emt 0:00:55]} Bd7 {[%emt 0:00:24]} 8. Nb3 {[%emt 0:03:30]} Bg7 {[%emt 0:01:41]} 9. c5 {[%emt 0:01:05]} dxc5 {[%emt 0:06:32]} 10. Nxc5 {[%emt 0:00:07]} O-O {[%emt 0:02:25]} 11. O-O {[%emt 0:09:45]} Bc8 {[%emt 0:01:04]} 12. Qb3 {[%emt 0:03:43]} Qb6 {[%emt 0:05:41]} 13. Qxb6 {[%emt 0:09:02]} axb6 {[%emt 0:00:07]} 14. Nd3 {[%emt 0:01:22]} Bf5 {[%emt 0:22:43]} 15. Nf4 {[%emt 0:06:43]} Na5 {[%emt 0:05:51]} 16. e4 {[%emt 0:06:02]} Bd7 {[%emt 0:01:11]} 17. Rb1 {[%emt 0:12:38]} Nc4 {[%emt 0:04:32]} 18. a4 {[%emt 0:00:36]} e6 {[%emt 0:07:22]} 19. Nfe2 {[%emt 0:04:38]} Rfc8 {[%emt 0:04:22]} 20. b3 {[%emt 0:04:00]} Na5 {[%emt 0:00:56]} 21. e5 {[%emt 0:01:54]} Ng4 {[%emt 0:06:57]} 22. f4 {[%emt 0:00:13]} Bc6 {[%emt 0:01:55]} 23. Ne4 {[%emt 0:05:01]} f5 {[%emt 0:04:33]} 24. exf6 {[%emt 0:08:21]} Nxf6 {[%emt 0:00:04]} 25. Nxf6+ {[%emt 0:05:53]} Bxf6 {[%emt 0:00:04]} 26. Be3 {[%emt 0:03:41]} Bxg2 {[%emt 0:00:34]} 27. Kxg2 {[%emt 0:00:04]} Rc2 {[%emt 0:00:25]} 28. Kf3 {[%emt 0:02:59]} Rd8 {[%emt 0:03:32]} 29. Rfd1 {[%emt 0:02:38]} Rxd1 {[%emt 0:00:54]} 30. Rxd1 {[%emt 0:00:02]} Nxb3 {[%emt 0:00:44]} 31. Rd6 {[%emt 0:00:23]} Nc5 {[%emt 0:04:57]} 32. Rxb6 {[%emt 0:00:05]} Nxa4 {[%emt 0:00:16]} 33. Rxb7 {[%emt 0:00:40]} e5 {[%emt 0:02:09]} 34. fxe5 {[%emt 0:03:40]} Bxe5 {[%emt 0:00:03]} 35. Ra7 {[%emt 0:00:40]} Nc3 {[%emt 0:00:52]} 36. Nxc3 {[%emt 0:00:32]} Rxc3 {[%emt 0:00:04]} 37. Ke4 {[%emt 0:00:12]} Bf6 {[%emt 0:01:37]} 38. Bh6 {[%emt 0:03:05]} Rc5 {[%emt 0:03:06]} 39. h4 {[%emt 0:00:18]} Re5+ {[%emt 0:00:15]} 40. Kf4 {[%emt 0:00:00]} Re8 {[%emt 0:00:00] Ke4} 1/2-1/2

[Event "RUS-chTW Premier 2019"]
[Site "Sochi"]
[Date "2019.05.02"]
[Round "2.3"]
[White "Bivol, Alina"]
[Black "Maltsevskaya, Aleksandra"]
[Result "1/2-1/2"]
[ECO "B18"]
[WhiteElo "2393"]
[BlackElo "2299"]
[Annotator "NA"]
[PlyCount "100"]
[EventDate "2019.05.01"]
[EventType "team-tourn"]
[EventCountry "RUS"]
[SourceTitle "playchess.com"]
[Source "ChessBase"]
[SourceQuality "1"]
[TimeControl "40/5400+30:1800+30"]

1. e4 {[%emt 0:00:00]} c6 {[%emt 0:00:00]} 2. d4 {[%emt 0:00:00]} d5 {[%emt 0:00:00]} 3. Nc3 {[%emt 0:00:23]} dxe4 {[%emt 0:00:00]} 4. Nxe4 {[%emt 0:00:03]} Bf5 {[%emt 0:00:00]} 5. Ng3 {[%emt 0:00:19]} Bg6 {[%emt 0:00:04]} 6. c3 {[%emt 0:00:03]} Nd7 {[%emt 0:12:02]} 7. Bc4 {[%emt 0:00:20]} Qc7 {[%emt 0:10:12]} 8. h4 {[%emt 0:02:25]} h6 {[%emt 0:03:40]} 9. N1e2 {[%emt 0:00:06]} e6 {[%emt 0:05:20]} 10. Nf4 {[%emt 0:01:18]} Bh7 {[%emt 0:00:48]} 11. O-O {[%emt 0:03:15]} O-O-O {[%emt 0:00:27]} 12. Qf3 {[%emt 0:10:18]} Ngf6 {[%emt 0:05:44]} 13. Nfh5 {[%emt 0:02:11]} Rg8 {[%emt 0:10:48]} 14. a4 {[%emt 0:05:09]} Bd6 {[%emt 0:02:29]} 15. a5 {[%emt 0:05:50]} Nxh5 {[%emt 0:06:58]} 16. Nxh5 {[%emt 0:00:31]} g5 {[%emt 0:00:19]} 17. a6 {[%emt 0:07:35]} b5 {[%emt 0:07:28]} 18. Be2 {[%emt 0:01:31]} Bg6 {[%emt 0:03:27]} 19. Qe3 {[%emt 0:09:44]} gxh4 {[%emt 0:05:25]} 20. Qh3 {[%emt 0:01:07]} Be4 {[%emt 0:04:27]} 21. f3 {[%emt 0:01:48]} Bf5 {[%emt 0:03:03]} 22. Qxh4 {[%emt 0:00:12]} Nf8 {[%emt 0:00:37]} 23. f4 {[%emt 0:01:31]} Be4 {[%emt 0:02:04]} 24. Rf2 {[%emt 0:00:59]} Ng6 {[%emt 0:02:21]} 25. Qh2 {[%emt 0:00:49]} Qe7 {[%emt 0:00:39]} 26. Ng3 {[%emt 0:12:37]} Bd5 {[%emt 0:00:35]} 27. b3 {[%emt 0:08:20]} Bxb3 {[%emt 0:12:19]} 28. Ne4 {[%emt 0:01:12]} Bd5 {[%emt 0:00:05]} 29. Nxd6+ {[%emt 0:00:14]} Qxd6 {[%emt 0:00:05]} 30. Ba3 {[%emt 0:01:19]} Qc7 {[%emt 0:00:04]} 31. Bb4 {[%emt 0:06:45]} Rde8 {[%emt 0:00:56]} 32. Rc1 {[%emt 0:01:40]} Rg7 {[%emt 0:01:33]} 33. c4 {[%emt 0:02:28]} bxc4 {[%emt 0:00:07]} 34. Bxc4 {[%emt 0:00:33]} Bxc4 {[%emt 0:01:28]} 35. Rxc4 {[%emt 0:00:01]} Reg8 {[%emt 0:00:06]} 36. f5 {[%emt 0:03:38]} exf5 {[%emt 0:01:12]} 37. Bd6 {[%emt 0:01:20]} Qb6 {[%emt 0:00:46]} 38. Rb4 {[%emt 0:01:26]} Qxa6 {[%emt 0:00:24]} 39. Qh3 {[%emt 0:00:41]} Kd7 {[%emt 0:00:54]} 40. Bc5 {[%emt 0:00:00]} Qa1+ {[%emt 0:00:00]} 41. Rf1 {[%emt 0:02:15]} Qa2 {[%emt 0:01:37]} 42. Rb7+ {[%emt 0:01:55]} Kc8 {[%emt 0:00:49]} 43. Rxa7 {[%emt 0:00:17]} Nf4 {[%emt 0:03:10]} 44. Qxf5+ {[%emt 0:09:48]} Qe6 {[%emt 0:00:06]} 45. Ra8+ {[%emt 0:01:17]} Kd7 {[%emt 0:01:26]} 46. Qxe6+ {[%emt 0:00:40]} Nxe6 {[%emt 0:00:07]} 47. Rxg8 {[%emt 0:00:21]} Rxg8 {[%emt 0:00:05]} 48. Rxf7+ {[%emt 0:00:04]} Kc8 {[%emt 0:00:06]} 49. Rf6 {[%emt 0:00:11]} Kd7 {[%emt 0:00:22]} 50. Rxh6 {[%emt 0:01:42]} Nxc5 {[%emt 0:00:05]} 1/2-1/2

[Event "RUS-chTW Premier 2019"]
[Site "Sochi"]
[Date "2019.05.02"]
[Round "2.4"]
[White "Diakonova, Ekaterina"]
[Black "Voit, Daria"]
[Result "0-1"]
[ECO "B30"]
[WhiteElo "2211"]
[BlackElo "2340"]
[Annotator "NA"]
[PlyCount "58"]
[EventDate "2019.05.01"]
[EventType "team-tourn"]
[EventCountry "RUS"]
[SourceTitle "playchess.com"]
[Source "ChessBase"]
[SourceQuality "1"]
[TimeControl "40/5400+30:1800+30"]

1. e4 {[%emt 0:00:00]} c5 {[%emt 0:00:00]} 2. Nf3 {[%emt 0:00:00]} Nc6 {[%emt 0:00:00]} 3. c4 {[%emt 0:00:00]} e5 {[%emt 0:00:00]} 4. Nc3 {[%emt 0:00:00]} d6 {[%emt 0:00:29]} 5. d3 f5 6. Nd5 {[%emt 0:13:21]} Be7 {[%emt 0:12:02]} 7. Be2 {[%emt 0:06:57]} Nf6 {[%emt 0:04:10]} 8. Qc2 {[%emt 0:00:50]} O-O {[%emt 0:02:03]} 9. Be3 {[%emt 0:02:19]} Rb8 {[%emt 0:02:30]} 10. a3 {[%emt 0:02:23]} Qe8 {[%emt 0:21:44]} 11. b4 {[%emt 0:04:45]} b6 {[%emt 0:05:05]} 12. Rb1 {[%emt 0:16:22]} Nd4 {[%emt 0:14:40]} 13. Nxd4 {[%emt 0:06:23]} cxd4 {[%emt 0:01:58]} 14. Bd2 {[%emt 0:01:37]} fxe4 {[%emt 0:01:06]} 15. dxe4 {[%emt 0:07:45]} Nxd5 {[%emt 0:03:52]} 16. cxd5 {[%emt 0:00:05]} Qg6 {[%emt 0:00:36]} 17. Bf3 {[%emt 0:05:03]} Rxf3 {[%emt 0:15:04]} 18. gxf3 {[%emt 0:00:17]} Qg2 {[%emt 0:00:25]} 19. Rf1 {[%emt 0:12:12]} Bh3 {[%emt 0:01:02]} 20. Ke2 {[%emt 0:00:05]} Rf8 {[%emt 0:00:41]} 21. Qd3 {[%emt 0:03:51]} Bh4 {[%emt 0:00:27]} 22. a4 {[%emt 0:01:24]} g5 {[%emt 0:02:44]} 23. Bxg5 {[%emt 0:01:44]} Qxg5 {[%emt 0:01:01]} 24. Rg1 {[%emt 0:01:48]} Bg2 {[%emt 0:00:06]} 25. a5 {[%emt 0:01:01]} Kh8 {[%emt 0:01:07]} 26. Rbd1 {[%emt 0:04:41]} Bxf3+ {[%emt 0:02:22]} 27. Qxf3 {[%emt 0:02:33]} Rxf3 {[%emt 0:00:11]} 28. Kxf3 {[%emt 0:01:05]} Qf4+ {[%emt 0:00:42]} 29. Kg2 {[%emt 0:00:04]} Qg4+ {[%emt 0:00:24]} 0-1

[Event "RUS-chTW Premier 2019"]
[Site "Sochi"]
[Date "2019.05.02"]
[Round "2.6"]
[White "Girya, Olga"]
[Black "Markelova, Lubov"]
[Result "1-0"]
[ECO "D12"]
[WhiteElo "2449"]
[BlackElo "2199"]
[Annotator "NA"]
[PlyCount "135"]
[EventDate "2019.05.01"]
[EventType "team-tourn"]
[EventCountry "RUS"]
[SourceTitle "playchess.com"]
[Source "ChessBase"]
[SourceQuality "1"]
[TimeControl "40/5400+30:1800+30"]

1. d4 {[%emt 0:00:00]} d5 {[%emt 0:00:00]} 2. c4 {[%emt 0:00:00]} c6 {[%emt 0:00:00]} 3. Nf3 {[%emt 0:00:00]} Nf6 {[%emt 0:00:01]} 4. e3 {[%emt 0:00:00]} Bf5 {[%emt 0:02:41]} 5. Nc3 {[%emt 0:00:16]} e6 {[%emt 0:00:22]} 6. Nh4 {[%emt 0:00:10]} Be4 {[%emt 0:01:16]} 7. f3 {[%emt 0:00:20]} Bg6 {[%emt 0:00:06]} 8. Qb3 {[%emt 0:00:51]} Qc7 {[%emt 0:00:48]} 9. Bd2 {[%emt 0:01:24]} Be7 {[%emt 0:00:46]} 10. g3 {[%emt 0:03:02]} Nbd7 {[%emt 0:07:16]} 11. Rc1 {[%emt 0:12:05]} Rc8 {[%emt 0:12:23]} 12. cxd5 {[%emt 0:14:49]} exd5 {[%emt 0:04:47]} 13. Bh3 {[%emt 0:12:59]} Rd8 {[%emt 0:22:39]} 14. O-O {[%emt 0:05:10]} Qb6 {[%emt 0:09:17]} 15. Na4 {[%emt 0:08:27]} Qxb3 {[%emt 0:07:48]} 16. axb3 {[%emt 0:00:01]} O-O {[%emt 0:02:14]} 17. Nf5 {[%emt 0:00:34]} Bxf5 {[%emt 0:03:30]} 18. Bxf5 {[%emt 0:00:03]} g6 {[%emt 0:02:51]} 19. Bd3 {[%emt 0:00:53]} Ne8 {[%emt 0:03:51]} 20. Ba5 {[%emt 0:03:05]} Rc8 {[%emt 0:06:23]} 21. e4 {[%emt 0:04:05]} dxe4 {[%emt 0:00:49]} 22. fxe4 {[%emt 0:00:04]} Ng7 {[%emt 0:01:29]} 23. Bd2 {[%emt 0:05:29]} Ne6 {[%emt 0:01:43]} 24. Be3 {[%emt 0:02:10]} Nf6 {[%emt 0:05:01]} 25. h3 {[%emt 0:16:41]} Rfd8 {[%emt 0:00:58]} 26. d5 {[%emt 0:02:41]} cxd5 {[%emt 0:00:10]} 27. Rxc8 {[%emt 0:00:03]} Rxc8 {[%emt 0:00:04]} 28. exd5 {[%emt 0:00:13]} Nxd5 {[%emt 0:00:28]} 29. Bxa7 {[%emt 0:00:26]} b6 {[%emt 0:03:51]} 30. Be4 {[%emt 0:02:51]} Nf6 {[%emt 0:00:28]} 31. Bg2 {[%emt 0:00:11]} Nd7 {[%emt 0:00:25]} 32. Kh1 {[%emt 0:01:07]} Rc2 {[%emt 0:00:38]} 33. Nxb6 {[%emt 0:00:52]} Nxb6 {[%emt 0:00:42]} 34. Bxb6 {[%emt 0:00:01]} Rxb2 {[%emt 0:00:13]} 35. Bd5 {[%emt 0:00:09]} Bd6 {[%emt 0:00:49]} 36. Rf2 {[%emt 0:03:23]} Rb1+ {[%emt 0:00:33]} 37. Kg2 {[%emt 0:00:07]} h5 {[%emt 0:00:33]} 38. h4 {[%emt 0:02:05]} Rd1 {[%emt 0:00:26]} 39. Bc4 {[%emt 0:00:16]} Rc1 {[%emt 0:00:36]} 40. Rf3 {[%emt 0:00:00]} Rc2+ {[%emt 0:00:00]} 41. Kf1 {[%emt 0:02:45]} Kg7 {[%emt 0:08:46]} 42. Bf2 {[%emt 0:06:38]} Be5 {[%emt 0:02:38]} 43. Ke1 {[%emt 0:01:36]} Rc3 {[%emt 0:05:56]} 44. Rxc3 {[%emt 0:01:00]} Bxc3+ {[%emt 0:00:03]} 45. Ke2 {[%emt 0:00:10]} Kf6 {[%emt 0:04:28]} 46. Kd3 {[%emt 0:00:05]} Bb4 {[%emt 0:02:11]} 47. Bd5 {[%emt 0:03:46]} g5 {[%emt 0:02:30]} 48. Kc4 {[%emt 0:00:43]} Bd6 {[%emt 0:01:04]} 49. b4 {[%emt 0:01:09]} gxh4 {[%emt 0:05:15]} 50. gxh4 {[%emt 0:00:05]} Nf4 {[%emt 0:00:53]} 51. b5 {[%emt 0:03:32]} Ng6 {[%emt 0:01:13]} 52. Bb7 {[%emt 0:06:12]} Kf5 {[%emt 0:01:34]} 53. Kd5 {[%emt 0:01:26]} Bb8 {[%emt 0:00:24]} 54. Bc8+ {[%emt 0:03:24]} Kf4 {[%emt 0:00:07]} 55. Bc5 {[%emt 0:00:11]} Kf3 {[%emt 0:00:57]} 56. b6 {[%emt 0:00:41]} Nf4+ {[%emt 0:00:31]} 57. Kc6 {[%emt 0:00:49]} Be5 {[%emt 0:00:29]} 58. b7 {[%emt 0:01:49]} Bb8 {[%emt 0:00:21]} 59. Bd6 {[%emt 0:00:13]} Ba7 {[%emt 0:00:05]} 60. Kb5 {[%emt 0:00:27]} Nd3 {[%emt 0:01:03]} 61. Ka6 {[%emt 0:00:37]} Bb8 {[%emt 0:00:33]} 62. Bxb8 {[%emt 0:00:20]} Nc5+ {[%emt 0:00:09]} 63. Kb6 {[%emt 0:00:10]} Nxb7 {[%emt 0:00:11]} 64. Kxb7 {[%emt 0:00:05]} Ke4 {[%emt 0:00:08]} 65. Kc6 {[%emt 0:00:26]} f5 {[%emt 0:00:08]} 66. Kd6 {[%emt 0:00:05]} Kf4 {[%emt 0:00:42]} 67. Bc7 {[%emt 0:00:18]} Kg4 {[%emt 0:00:36]} 68. Bd8 {[%emt 0:00:05]} 1-0

[Event "RUS-chTW Premier 2019"]
[Site "Sochi"]
[Date "2019.05.02"]
[Round "2.7"]
[White "Shafigullina, Zarina"]
[Black "Guseva, Marina"]
[Result "0-1"]
[ECO "A46"]
[WhiteElo "2299"]
[BlackElo "2402"]
[Annotator "NA"]
[PlyCount "70"]
[EventDate "2019.05.01"]
[EventType "team-tourn"]
[EventCountry "RUS"]
[SourceTitle "playchess.com"]
[Source "ChessBase"]
[SourceQuality "1"]
[TimeControl "40/5400+30:1800+30"]

1. d4 {[%emt 0:00:00]} Nf6 {[%emt 0:00:00]} 2. Nf3 {[%emt 0:00:00]} e6 {[%emt 0:00:00]} 3. g3 {[%emt 0:00:57]} b5 {[%emt 0:00:00]} 4. b3 {[%emt 0:03:02]} Bb7 {[%emt 0:02:37]} 5. Bg2 {[%emt 0:02:24]} c5 {[%emt 0:03:28]} 6. dxc5 {[%emt 0:03:23]} Bxc5 {[%emt 0:00:07]} 7. O-O {[%emt 0:00:07]} O-O {[%emt 0:01:10]} 8. Bb2 {[%emt 0:00:05]} d5 {[%emt 0:14:25]} 9. Ne5 {[%emt 0:01:44]} Qb6 {[%emt 0:07:53]} 10. a4 {[%emt 0:05:09]} b4 {[%emt 0:02:30]} 11. a5 {[%emt 0:00:50]} Qd8 {[%emt 0:06:39]} 12. Nd3 {[%emt 0:05:27]} Be7 {[%emt 0:01:53]} 13. c3 {[%emt 0:01:01]} bxc3 {[%emt 0:02:56]} 14. Nxc3 {[%emt 0:00:28]} Na6 {[%emt 0:08:03]} 15. Qb1 {[%emt 0:17:22]} Rb8 {[%emt 0:01:34]} 16. Rd1 {[%emt 0:04:51]} Ba8 {[%emt 0:13:53]} 17. Ba3 {[%emt 0:15:11]} Bxa3 {[%emt 0:04:45]} 18. Rxa3 {[%emt 0:00:04]} Qe7 {[%emt 0:00:49]} 19. Qb2 {[%emt 0:00:05]} d4 {[%emt 0:05:34]} 20. Na2 {[%emt 0:01:08]} Bxg2 {[%emt 0:01:20]} 21. Kxg2 {[%emt 0:00:02]} e5 {[%emt 0:01:23]} 22. Kg1 {[%emt 0:01:02]} h6 {[%emt 0:02:45]} 23. Rc1 {[%emt 0:01:52]} e4 {[%emt 0:00:37]} 24. Nf4 {[%emt 0:00:39]} Rfd8 {[%emt 0:00:07]} 25. Ra4 {[%emt 0:03:33]} d3 {[%emt 0:08:54]} 26. exd3 {[%emt 0:03:17]} exd3 {[%emt 0:00:01]} 27. Rd4 {[%emt 0:01:02]} Rxd4 {[%emt 0:00:10]} 28. Qxd4 {[%emt 0:00:05]} Rd8 {[%emt 0:00:05]} 29. Qc4 {[%emt 0:03:10]} d2 {[%emt 0:03:59]} 30. Rd1 {[%emt 0:00:04]} Nc5 {[%emt 0:00:53]} 31. b4 {[%emt 0:03:46]} Na4 {[%emt 0:01:15]} 32. Nd3 {[%emt 0:06:36]} Qe2 {[%emt 0:00:45]} 33. Qc2 {[%emt 0:00:06]} Rxd3 {[%emt 0:00:31]} 34. Qxa4 {[%emt 0:00:11]} Ng4 {[%emt 0:00:29]} 35. Kg2 {[%emt 0:00:48]} Ne3+ {[%emt 0:00:18]} 0-1

[Event "RUS-chTW Premier 2019"]
[Site "Sochi"]
[Date "2019.05.02"]
[Round "2.8"]
[White "Kovanova, Baira"]
[Black "Bulatova, Kamaliya"]
[Result "0-1"]
[ECO "D38"]
[WhiteElo "2349"]
[BlackElo "2103"]
[Annotator "NA"]
[PlyCount "60"]
[EventDate "2019.05.01"]
[EventType "team-tourn"]
[EventCountry "RUS"]
[SourceTitle "playchess.com"]
[Source "ChessBase"]
[SourceQuality "1"]
[TimeControl "40/5400+30:1800+30"]

1. Nf3 {[%emt 0:00:00]} d5 {[%emt 0:00:00]} 2. d4 {[%emt 0:00:00]} Nf6 {[%emt 0:00:00]} 3. c4 {[%emt 0:00:01]} e6 {[%emt 0:00:00]} 4. Nc3 {[%emt 0:00:11]} Bb4 {[%emt 0:00:00]} 5. cxd5 {[%emt 0:00:20]} exd5 {[%emt 0:00:00]} 6. Bg5 {[%emt 0:00:30]} O-O {[%emt 0:00:20]} 7. e3 {[%emt 0:00:11]} Bf5 {[%emt 0:00:10]} 8. Be2 {[%emt 0:01:07]} Nbd7 {[%emt 0:07:55]} 9. O-O {[%emt 0:00:16]} c6 {[%emt 0:00:14]} 10. Qb3 {[%emt 0:01:07]} Qe7 {[%emt 0:11:05]} 11. a3 {[%emt 0:11:55]} Bxc3 {[%emt 0:02:18]} 12. Qxc3 {[%emt 0:02:57]} h6 {[%emt 0:01:14]} 13. Bh4 {[%emt 0:00:56]} g5 {[%emt 0:05:44]} 14. Bg3 {[%emt 0:00:39]} Ne4 {[%emt 0:00:14]} 15. Qa5 {[%emt 0:03:19]} h5 {[%emt 0:07:42]} 16. Qc7 {[%emt 0:31:14]} h4 {[%emt 0:05:40]} 17. Be5 {[%emt 0:02:25]} f6 {[%emt 0:08:31]} 18. Qxb7 {[%emt 0:01:24]} fxe5 {[%emt 0:02:02]} 19. Nxe5 {[%emt 0:20:05]} Qe6 {[%emt 0:06:08]} 20. Nxc6 {[%emt 0:01:09]} h3 {[%emt 0:01:57]} 21. g3 {[%emt 0:07:35]} Nd2 {[%emt 0:03:34]} 22. Rfd1 {[%emt 0:04:35]} Rab8 {[%emt 0:06:09]} 23. Nxb8 {[%emt 0:04:44]} Qe4 {[%emt 0:02:20]} 24. f3 {[%emt 0:02:17]} Qxe3+ {[%emt 0:02:34]} 25. Kh1 {[%emt 0:00:11]} Rxb8 {[%emt 0:05:51]} 26. Qxd5+ {[%emt 0:01:30]} Be6 {[%emt 0:00:14]} 27. Qc6 {[%emt 0:01:13]} Rb6 {[%emt 0:03:30]} 28. Qa8+ {[%emt 0:00:39]} Nf8 {[%emt 0:00:04]} 29. Qd8 {[%emt 0:01:15]} Nxf3 {[%emt 0:00:21]} 30. Re1 {[%emt 0:00:34]} Qf2 {[%emt 0:00:17]} 0-1